[Event "Early-Titled-Tuesday-Blitz-December-26-2023"]
[Site "Chess.com"]
[Date "2023.12.26"]
[Round "6"]
[White "Virgo15"]
[Black "rasmussvane"]
[Result "1/2-1/2"]
[WhiteElo "2768"]
[BlackElo "2926"]
[TimeControl "180+1"]
[EndTime "9:07:20 PST"]
[Termination "Game drawn - insufficient material"]

1. d4 {[%clk 0:02:51.8]} 1... d5 {[%clk 0:02:56.7]} 2. Bf4 {[%clk 0:02:52.3]}
2... e6 {[%clk 0:02:55.6]} 3. e3 {[%clk 0:02:52.6]} 3... Bd6 {[%clk 0:02:55.8]}
4. Bg3 {[%clk 0:02:51.7]} 4... Nf6 {[%clk 0:02:54.8]} 5. Nf3 {[%clk 0:02:51.8]}
5... O-O {[%clk 0:02:54.9]} 6. Nbd2 {[%clk 0:02:51.2]} 6... c5 {[%clk 0:02:55]}
7. c3 {[%clk 0:02:48.3]} 7... Qc7 {[%clk 0:02:55]} 8. Rc1 {[%clk 0:02:48.9]}
8... Nbd7 {[%clk 0:02:53.7]} 9. c4 {[%clk 0:02:46.2]} 9... b6 {[%clk 0:02:50]}
10. b4 {[%clk 0:02:46.2]} 10... Bb7 {[%clk 0:02:17.6]} 11. cxd5 {[%clk
0:02:35.3]} 11... Bxd5 {[%clk 0:02:12.8]} 12. bxc5 {[%clk 0:02:35.5]} 12... bxc5
{[%clk 0:02:12.2]} 13. Be2 {[%clk 0:02:31.9]} 13... Bxg3 {[%clk 0:02:09.6]} 14.
hxg3 {[%clk 0:02:31.8]} 14... Qa5 {[%clk 0:02:09.1]} 15. dxc5 {[%clk 0:02:28.9]}
15... Nxc5 {[%clk 0:02:06.3]} 16. O-O {[%clk 0:02:28.8]} 16... Rac8 {[%clk
0:02:01.5]} 17. Nc4 {[%clk 0:02:25.3]} 17... Qxa2 {[%clk 0:01:29]} 18. Ra1
{[%clk 0:02:25]} 18... Qb3 {[%clk 0:01:29]} 19. Nd4 {[%clk 0:02:25.5]} 19...
Qxd1 {[%clk 0:01:28.4]} 20. Rfxd1 {[%clk 0:02:24.4]} 20... Nfe4 {[%clk
0:01:25.2]} 21. Bf1 {[%clk 0:02:15.7]} 21... Nxf2 {[%clk 0:01:14.8]} 22. Kxf2
{[%clk 0:02:13.7]} 22... Ne4+ {[%clk 0:01:15.1]} 23. Kg1 {[%clk 0:02:06.9]}
23... Bxc4 {[%clk 0:01:14.8]} 24. Bxc4 {[%clk 0:02:05.4]} 24... Rxc4 {[%clk
0:01:15.7]} 25. Rxa7 {[%clk 0:02:04.8]} 25... Nxg3 {[%clk 0:01:14.5]} 26. Rb1
{[%clk 0:02:02.3]} 26... Nf5 {[%clk 0:01:12.4]} 27. Nf3 {[%clk 0:01:53.2]} 27...
Nxe3 {[%clk 0:01:07.9]} 28. Rbb7 {[%clk 0:01:53.8]} 28... Rg4 {[%clk 0:01:03.8]}
29. Kf2 {[%clk 0:01:49.6]} 29... Nd5 {[%clk 0:00:59.3]} 30. Ne5 {[%clk
0:01:47.3]} 30... Rf4+ {[%clk 0:00:59]} 31. Kg3 {[%clk 0:01:48]} 31... Rf5
{[%clk 0:00:58.4]} 32. Nd7 {[%clk 0:01:46.9]} 32... Rd8 {[%clk 0:00:58.4]} 33.
Nc5 {[%clk 0:01:47.3]} 33... h6 {[%clk 0:00:55.7]} 34. Kh4 {[%clk 0:01:40.9]}
34... Ne3 {[%clk 0:00:48.7]} 35. Nxe6 {[%clk 0:01:17.6]} 35... fxe6 {[%clk
0:00:43.7]} 36. Rxg7+ {[%clk 0:01:18.5]} 36... Kf8 {[%clk 0:00:42.3]} 37. g4
{[%clk 0:01:09.4]} 37... Rd4 {[%clk 0:00:26.9]} 38. Kg3 {[%clk 0:01:06.3]} 38...
Rg5 {[%clk 0:00:20.6]} 39. Rh7 {[%clk 0:01:03.3]} 39... Rdxg4+ {[%clk
0:00:16.2]} 40. Kf3 {[%clk 0:01:03.8]} 40... Rg3+ {[%clk 0:00:16.6]} 41. Ke4
{[%clk 0:01:02.7]} 41... R5g4+ {[%clk 0:00:12.5]} 42. Ke5 {[%clk 0:01:01.4]}
42... Rg7 {[%clk 0:00:12.9]} 43. Rh8+ {[%clk 0:00:34.5]} 43... Rg8 {[%clk
0:00:13.3]} 44. Rhh7 {[%clk 0:00:27.4]} 44... Nc4+ {[%clk 0:00:08.4]} 45. Kd4
{[%clk 0:00:24.9]} 45... Nd6 {[%clk 0:00:08.1]} 46. Ke5 {[%clk 0:00:20.6]} 46...
R3g5+ {[%clk 0:00:02.4]} 47. Kxd6 {[%clk 0:00:20.2]} 47... R5g7 {[%clk
0:00:01.9]} 48. Raxg7 {[%clk 0:00:12.9]} 48... Rxg7 {[%clk 0:00:02.8]} 49. Rxh6
{[%clk 0:00:12.9]} 49... Kf7 {[%clk 0:00:02.6]} 50. Rxe6 {[%clk 0:00:13.1]}
50... Rg6 {[%clk 0:00:03]} 51. Rxg6 {[%clk 0:00:13.1]} 51... Kxg6 {[%clk
0:00:03.9]} 1/2-1/2

[Event "Early-Titled-Tuesday-Blitz-December-26-2023"]
[Site "Chess.com"]
[Date "2023.12.26"]
[Round "6"]
[White "deribas12345"]
[Black "TanitoluwaAps116"]
[Result "1-0"]
[WhiteElo "2543"]
[BlackElo "2714"]
[TimeControl "180+1"]
[EndTime "9:07:30 PST"]
[Termination "deribas12345 won by resignation"]

1. d4 {[%clk 0:03:00.9]} 1... Nf6 {[%clk 0:02:45.3]} 2. c4 {[%clk 0:02:59.8]}
2... e6 {[%clk 0:02:43.7]} 3. Nc3 {[%clk 0:02:59.5]} 3... Bb4 {[%clk 0:02:43.1]}
4. a3 {[%clk 0:02:59.1]} 4... Bxc3+ {[%clk 0:02:43]} 5. bxc3 {[%clk 0:03:00]}
5... Nc6 {[%clk 0:02:42.6]} 6. f3 {[%clk 0:03:00.3]} 6... d6 {[%clk 0:02:40.9]}
7. e4 {[%clk 0:02:59.9]} 7... b6 {[%clk 0:02:41.4]} 8. Bd3 {[%clk 0:02:58.1]}
8... Na5 {[%clk 0:02:41.7]} 9. Ne2 {[%clk 0:02:56.7]} 9... Ba6 {[%clk
0:02:42.4]} 10. Bg5 {[%clk 0:02:56.8]} 10... Qd7 {[%clk 0:02:39.3]} 11. Bxf6
{[%clk 0:02:51.5]} 11... gxf6 {[%clk 0:02:40.2]} 12. Ng3 {[%clk 0:02:51.8]}
12... Bxc4 {[%clk 0:02:31.9]} 13. Bxc4 {[%clk 0:02:50.2]} 13... Nxc4 {[%clk
0:02:32.8]} 14. Nh5 {[%clk 0:02:49.7]} 14... Ke7 {[%clk 0:02:33.3]} 15. Qe2
{[%clk 0:02:40.9]} 15... Qb5 {[%clk 0:02:30.5]} 16. g4 {[%clk 0:02:24.4]} 16...
Rhg8 {[%clk 0:02:22]} 17. Kf2 {[%clk 0:01:01]} 17... a6 {[%clk 0:01:44.8]} 18.
Rhb1 {[%clk 0:00:44.3]} 18... Qc6 {[%clk 0:01:42.4]} 19. a4 {[%clk 0:00:42.4]}
19... Rg5 {[%clk 0:01:35.9]} 20. Rb4 {[%clk 0:00:38.6]} 20... Na5 {[%clk
0:01:25]} 21. Qd2 {[%clk 0:00:37.2]} 21... Rag8 {[%clk 0:01:17.5]} 22. h4 {[%clk
0:00:34.9]} 22... R5g6 {[%clk 0:01:15.7]} 23. Nf4 {[%clk 0:00:33.7]} 23... R6g7
{[%clk 0:01:09.9]} 24. Nh5 {[%clk 0:00:33.7]} 24... Rg6 {[%clk 0:01:05.9]} 25.
Nf4 {[%clk 0:00:33.7]} 25... Rh6 {[%clk 0:00:29.7]} 26. h5 {[%clk 0:00:33]}
26... f5 {[%clk 0:00:19.6]} 27. exf5 {[%clk 0:00:27.2]} 27... Rf6 {[%clk
0:00:19.2]} 28. Re1 {[%clk 0:00:22.6]} 28... Kd7 {[%clk 0:00:18.5]} 29. fxe6+
{[%clk 0:00:07.4]} 29... fxe6 {[%clk 0:00:19.4]} 30. d5 {[%clk 0:00:05.1]} 30...
Qc5+ {[%clk 0:00:17.6]} 31. Kg3 {[%clk 0:00:05.3]} 31... exd5 {[%clk 0:00:10.6]}
32. Nxd5 {[%clk 0:00:05.1]} 32... Rf7 {[%clk 0:00:10.2]} 33. Rf4 {[%clk
0:00:04.4]} 33... Rgf8 {[%clk 0:00:08.1]} 34. Rxf7+ {[%clk 0:00:03.6]} 34...
Rxf7 {[%clk 0:00:09]} 35. Qh6 {[%clk 0:00:02.8]} 35... Kc6 {[%clk 0:00:05.9]}
36. Nf6 {[%clk 0:00:03]} 36... Qxc3 {[%clk 0:00:03.8]} 37. Rc1 {[%clk
0:00:03.3]} 37... Qxc1 {[%clk 0:00:02.7]} 38. Qxc1+ {[%clk 0:00:04.2]} 38... Kb7
{[%clk 0:00:03.3]} 39. Nd5 {[%clk 0:00:04.2]} 39... c5 {[%clk 0:00:03.4]} 40.
Qc2 {[%clk 0:00:03.8]} 40... Kc6 {[%clk 0:00:03.4]} 41. Ne3 {[%clk 0:00:03.8]}
41... b5 {[%clk 0:00:03.6]} 42. Nf5 {[%clk 0:00:04.3]} 42... b4 {[%clk
0:00:03.5]} 43. Qd3 {[%clk 0:00:03.8]} 43... b3 {[%clk 0:00:03.4]} 44. Qxd6+
{[%clk 0:00:04]} 44... Kb7 {[%clk 0:00:02.4]} 45. Qxc5 {[%clk 0:00:04.6]} 45...
Nc6 {[%clk 0:00:02.1]} 46. Nd6+ {[%clk 0:00:05.1]} 46... Kc7 {[%clk 0:00:02.3]}
47. Nxf7 {[%clk 0:00:05.9]} 47... b2 {[%clk 0:00:02.8]} 48. Ne5 {[%clk
0:00:06.2]} 48... b1=Q {[%clk 0:00:02.5]} 49. Qxc6+ {[%clk 0:00:07.1]} 49... Kb8
{[%clk 0:00:02.6]} 50. Nd7+ {[%clk 0:00:06.3]} 50... Ka7 {[%clk 0:00:03.5]} 51.
Qb6+ {[%clk 0:00:06.7]} 51... Qxb6 {[%clk 0:00:03.2]} 52. Nxb6 {[%clk
0:00:07.6]} 52... Kxb6 {[%clk 0:00:04.1]} 53. g5 {[%clk 0:00:08.3]} 53... Ka5
{[%clk 0:00:04.6]} 54. g6 {[%clk 0:00:08.9]} 54... hxg6 {[%clk 0:00:05.5]} 55.
hxg6 {[%clk 0:00:09.3]} 55... Kxa4 {[%clk 0:00:06.3]} 56. g7 {[%clk 0:00:10.2]}
56... Kb5 {[%clk 0:00:07.1]} 57. g8=Q {[%clk 0:00:10.7]} 57... a5 {[%clk
0:00:08]} 58. Qa2 {[%clk 0:00:10.7]} 58... a4 {[%clk 0:00:08.9]} 59. f4 {[%clk
0:00:11.2]} 59... Kc5 {[%clk 0:00:09.2]} 60. f5 {[%clk 0:00:11.8]} 60... Kd4
{[%clk 0:00:10.1]} 61. Qxa4+ {[%clk 0:00:12.1]} 61... Ke5 {[%clk 0:00:11]} 62.
Qf4+ {[%clk 0:00:11.7]} 62... Kf6 {[%clk 0:00:11.9]} 63. Kg4 {[%clk 0:00:11.8]}
63... Kg7 {[%clk 0:00:12.8]} 64. Qd6 {[%clk 0:00:11.9]} 64... Kh8 {[%clk
0:00:13.7]} 65. Qe7 {[%clk 0:00:11.2]} 65... Kg8 {[%clk 0:00:14.6]} 66. Kg5
{[%clk 0:00:11.7]} 66... Kh8 {[%clk 0:00:15.5]} 67. Kg6 {[%clk 0:00:12.2]} 1-0

[Event "Early-Titled-Tuesday-Blitz-December-26-2023"]
[Site "Chess.com"]
[Date "2023.12.26"]
[Round "6"]
[White "egnfanclub"]
[Black "ChessBliss09"]
[Result "1-0"]
[WhiteElo "2351"]
[BlackElo "2088"]
[TimeControl "180+1"]
[EndTime "9:07:30 PST"]
[Termination "egnfanclub won by checkmate"]

1. e4 {[%clk 0:03:00.9]} 1... e6 {[%clk 0:02:59.6]} 2. d4 {[%clk 0:03:00.3]}
2... d5 {[%clk 0:02:59.6]} 3. Nc3 {[%clk 0:03:00.9]} 3... dxe4 {[%clk
0:02:59.2]} 4. Nxe4 {[%clk 0:03:01.2]} 4... Nd7 {[%clk 0:02:59.9]} 5. Bd3 {[%clk
0:02:59]} 5... Ngf6 {[%clk 0:03:00]} 6. Nf3 {[%clk 0:02:57.8]} 6... Nxe4 {[%clk
0:02:58.8]} 7. Bxe4 {[%clk 0:02:58.7]} 7... Nf6 {[%clk 0:02:58.9]} 8. Bd3 {[%clk
0:02:59]} 8... c5 {[%clk 0:02:59.1]} 9. c3 {[%clk 0:02:58.8]} 9... cxd4 {[%clk
0:02:59.4]} 10. Nxd4 {[%clk 0:02:59.4]} 10... Bc5 {[%clk 0:02:59.2]} 11. O-O
{[%clk 0:02:59.2]} 11... O-O {[%clk 0:02:58.4]} 12. Bg5 {[%clk 0:02:58.9]} 12...
Qc7 {[%clk 0:02:40.8]} 13. Bxf6 {[%clk 0:02:54.2]} 13... gxf6 {[%clk 0:02:41.7]}
14. Qh5 {[%clk 0:02:54.3]} 14... f5 {[%clk 0:02:40.9]} 15. Nf3 {[%clk
0:02:53.5]} 15... Be7 {[%clk 0:02:30.7]} 16. Ng5 {[%clk 0:02:49.3]} 16... Bxg5
{[%clk 0:02:16.2]} 17. Qxg5+ {[%clk 0:02:50.2]} 17... Kh8 {[%clk 0:02:16.1]} 18.
Qf6+ {[%clk 0:02:50.6]} 18... Kg8 {[%clk 0:02:16.2]} 19. Rad1 {[%clk 0:02:45.6]}
19... Qd8 {[%clk 0:01:59.2]} 20. Qxd8 {[%clk 0:02:34.4]} 20... Rxd8 {[%clk
0:01:58.5]} 21. Bb5 {[%clk 0:02:29.2]} 21... Rf8 {[%clk 0:01:40.6]} 22. Rd6
{[%clk 0:02:24.2]} 22... a6 {[%clk 0:01:40]} 23. Be2 {[%clk 0:02:23.6]} 23... b5
{[%clk 0:01:38.9]} 24. Bf3 {[%clk 0:02:19.7]} 24... Ra7 {[%clk 0:01:36.8]} 25.
Rfd1 {[%clk 0:02:18.7]} 25... Rc7 {[%clk 0:01:14.5]} 26. g3 {[%clk 0:02:00.9]}
26... Kg7 {[%clk 0:01:13.8]} 27. Kg2 {[%clk 0:01:46.8]} 27... Kf6 {[%clk
0:01:12.6]} 28. h4 {[%clk 0:01:37.3]} 28... Ke7 {[%clk 0:01:10.7]} 29. Rb6
{[%clk 0:01:20.8]} 29... Rd8 {[%clk 0:01:02.8]} 30. Rxd8 {[%clk 0:01:20]} 30...
Kxd8 {[%clk 0:01:03.2]} 31. Bc6 {[%clk 0:01:08.1]} 31... Ke7 {[%clk 0:01:00.9]}
32. f3 {[%clk 0:01:06.2]} 32... Kf6 {[%clk 0:00:47.5]} 33. a4 {[%clk 0:01:05.1]}
33... bxa4 {[%clk 0:00:41.4]} 34. Bxa4 {[%clk 0:01:05.2]} 34... Rb7 {[%clk
0:00:36.3]} 35. Rxb7 {[%clk 0:00:58.1]} 35... Bxb7 {[%clk 0:00:36]} 36. Kf2
{[%clk 0:00:59]} 36... Ke5 {[%clk 0:00:31.7]} 37. Ke3 {[%clk 0:00:56]} 37... f6
{[%clk 0:00:25.6]} 38. Bb3 {[%clk 0:00:51.3]} 38... a5 {[%clk 0:00:15.1]} 39.
f4+ {[%clk 0:00:51.3]} 39... Kd6 {[%clk 0:00:14.8]} 40. Bc2 {[%clk 0:00:49.8]}
40... Bd5 {[%clk 0:00:10.9]} 41. b3 {[%clk 0:00:44.4]} 41... Bc6 {[%clk
0:00:09.1]} 42. Bd1 {[%clk 0:00:31.8]} 42... a4 {[%clk 0:00:06.7]} 43. bxa4
{[%clk 0:00:31.4]} 43... Kc5 {[%clk 0:00:04.7]} 44. g4 {[%clk 0:00:30.4]} 44...
fxg4 {[%clk 0:00:02.9]} 45. Bxg4 {[%clk 0:00:30]} 45... Bxa4 {[%clk 0:00:01.6]}
46. Bxe6 {[%clk 0:00:30.1]} 46... Be8 {[%clk 0:00:01.6]} 47. Ke4 {[%clk
0:00:28.1]} 47... h6 {[%clk 0:00:02.5]} 48. Kf5 {[%clk 0:00:28.1]} 48... Kd6
{[%clk 0:00:02.6]} 49. Kxf6 {[%clk 0:00:28]} 49... h5 {[%clk 0:00:03.1]} 50. f5
{[%clk 0:00:23.5]} 50... Bc6 {[%clk 0:00:03]} 51. Bf7 {[%clk 0:00:22.9]} 51...
Bf3 {[%clk 0:00:03.9]} 52. Kg5 {[%clk 0:00:23]} 52... Ke5 {[%clk 0:00:04.1]} 53.
c4 {[%clk 0:00:21.2]} 53... Be2 {[%clk 0:00:03.8]} 54. c5 {[%clk 0:00:21.5]}
54... Bb5 {[%clk 0:00:03.4]} 55. Bxh5 {[%clk 0:00:20.5]} 55... Bd7 {[%clk
0:00:03.5]} 56. Bg6 {[%clk 0:00:20.4]} 56... Kd5 {[%clk 0:00:02.8]} 57. f6
{[%clk 0:00:20.2]} 57... Ke6 {[%clk 0:00:03]} 58. f7 {[%clk 0:00:20.3]} 58...
Ke7 {[%clk 0:00:03.4]} 59. h5 {[%clk 0:00:20.8]} 59... Kf8 {[%clk 0:00:04.3]}
60. Kf6 {[%clk 0:00:18.6]} 60... Bc6 {[%clk 0:00:03.3]} 61. h6 {[%clk
0:00:18.6]} 61... Be4 {[%clk 0:00:03.8]} 62. h7 {[%clk 0:00:17.6]} 62... Bxg6
{[%clk 0:00:03.7]} 63. h8=Q# {[%clk 0:00:17.9]} 1-0

[Event "Early-Titled-Tuesday-Blitz-December-26-2023"]
[Site "Chess.com"]
[Date "2023.12.26"]
[Round "6"]
[White "elchacal664"]
[Black "IAgrest"]
[Result "1-0"]
[WhiteElo "2303"]
[BlackElo "2383"]
[TimeControl "180+1"]
[EndTime "9:07:32 PST"]
[Termination "elchacal664 won on time"]

1. e4 {[%clk 0:03:00.9]} 1... e5 {[%clk 0:02:59.7]} 2. d4 {[%clk 0:02:58.9]}
2... exd4 {[%clk 0:02:59.7]} 3. Nf3 {[%clk 0:02:58.2]} 3... Nc6 {[%clk
0:02:59.7]} 4. Nxd4 {[%clk 0:02:58]} 4... Nf6 {[%clk 0:02:59.7]} 5. Bb5 {[%clk
0:02:54.9]} 5... Bc5 {[%clk 0:02:50.3]} 6. Nb3 {[%clk 0:02:52.5]} 6... Bb6
{[%clk 0:02:48.7]} 7. Nc3 {[%clk 0:02:52.5]} 7... O-O {[%clk 0:02:31.8]} 8. O-O
{[%clk 0:02:50.5]} 8... h6 {[%clk 0:02:30.7]} 9. Qf3 {[%clk 0:02:44]} 9... Ne5
{[%clk 0:02:27.2]} 10. Qg3 {[%clk 0:02:43.7]} 10... Ng6 {[%clk 0:02:14.4]} 11.
e5 {[%clk 0:02:34.5]} 11... Nh7 {[%clk 0:01:54.7]} 12. Bc4 {[%clk 0:02:29.9]}
12... Kh8 {[%clk 0:01:48.7]} 13. Bxf7 {[%clk 0:02:18.8]} 13... Nxe5 {[%clk
0:01:36.4]} 14. Qxe5 {[%clk 0:01:58.6]} 14... Rxf7 {[%clk 0:01:33.8]} 15. Nd5
{[%clk 0:01:47.6]} 15... d6 {[%clk 0:01:30.4]} 16. Qg3 {[%clk 0:01:46.1]} 16...
Bf5 {[%clk 0:01:27.3]} 17. Nxb6 {[%clk 0:01:44]} 17... axb6 {[%clk 0:01:27.1]}
18. Nd4 {[%clk 0:01:41.7]} 18... Bd7 {[%clk 0:01:17.7]} 19. Bd2 {[%clk
0:01:36.4]} 19... Qf6 {[%clk 0:01:10.6]} 20. Bc3 {[%clk 0:01:33.9]} 20... Qg5
{[%clk 0:01:10.7]} 21. Nf3 {[%clk 0:01:26.4]} 21... Qxg3 {[%clk 0:01:08]} 22.
hxg3 {[%clk 0:01:23.5]} 22... Nf6 {[%clk 0:01:08.1]} 23. Bxf6 {[%clk 0:01:17.5]}
23... Rxf6 {[%clk 0:01:06.4]} 24. a3 {[%clk 0:01:17.2]} 24... Bf5 {[%clk
0:01:01.3]} 25. Nd4 {[%clk 0:01:16.9]} 25... Bg6 {[%clk 0:01:01.4]} 26. c3
{[%clk 0:01:13.3]} 26... Raf8 {[%clk 0:00:55.1]} 27. f3 {[%clk 0:01:11.9]} 27...
c5 {[%clk 0:00:49.4]} 28. Nb3 {[%clk 0:01:07.6]} 28... Re6 {[%clk 0:00:46.5]}
29. Rfe1 {[%clk 0:01:07]} 29... Rfe8 {[%clk 0:00:46.6]} 30. Kf2 {[%clk 0:01:04]}
30... Bf7 {[%clk 0:00:34.7]} 31. Nd2 {[%clk 0:01:02.5]} 31... d5 {[%clk
0:00:34.8]} 32. f4 {[%clk 0:00:51.2]} 32... Kg8 {[%clk 0:00:27.9]} 33. Nf3
{[%clk 0:00:50.4]} 33... Re4 {[%clk 0:00:27]} 34. Ne5 {[%clk 0:00:48.7]} 34...
Rxe1 {[%clk 0:00:22.9]} 35. Rxe1 {[%clk 0:00:47.5]} 35... Be6 {[%clk 0:00:23.2]}
36. Ke3 {[%clk 0:00:47.3]} 36... h5 {[%clk 0:00:17.2]} 37. b4 {[%clk 0:00:47.9]}
37... Bf5 {[%clk 0:00:17]} 38. Rh1 {[%clk 0:00:46.2]} 38... g6 {[%clk
0:00:16.9]} 39. Rd1 {[%clk 0:00:46.3]} 39... Be4 {[%clk 0:00:16.2]} 40. Ra1
{[%clk 0:00:45.7]} 40... Bxg2 {[%clk 0:00:15.4]} 41. bxc5 {[%clk 0:00:40.1]}
41... bxc5 {[%clk 0:00:15.2]} 42. Rb1 {[%clk 0:00:40.8]} 42... Be4 {[%clk
0:00:13]} 43. Rb6 {[%clk 0:00:40.1]} 43... Kg7 {[%clk 0:00:10]} 44. Rxb7+ {[%clk
0:00:40.1]} 44... Kh6 {[%clk 0:00:10.3]} 45. Rb6 {[%clk 0:00:40.1]} 45... Bf5
{[%clk 0:00:10.2]} 46. Rb7 {[%clk 0:00:36.4]} 46... h4 {[%clk 0:00:08.7]} 47.
Kf2 {[%clk 0:00:35.2]} 47... hxg3+ {[%clk 0:00:08.7]} 48. Kxg3 {[%clk
0:00:35.8]} 48... Ra8 {[%clk 0:00:08.7]} 49. Nf7+ {[%clk 0:00:35.1]} 49... Kh5
{[%clk 0:00:09.3]} 50. Ng5 {[%clk 0:00:34.9]} 50... Rh8 {[%clk 0:00:08.3]} 51.
Rc7 {[%clk 0:00:34]} 51... c4 {[%clk 0:00:07.4]} 52. Rh7+ {[%clk 0:00:32.3]}
52... Rxh7 {[%clk 0:00:07.4]} 53. Nxh7 {[%clk 0:00:33.2]} 53... Kh6 {[%clk
0:00:07.4]} 54. Nf6 {[%clk 0:00:33.5]} 54... Be6 {[%clk 0:00:06.1]} 55. a4
{[%clk 0:00:32.8]} 55... Kg7 {[%clk 0:00:06.5]} 56. Ng4 {[%clk 0:00:29.7]} 56...
Kf7 {[%clk 0:00:05.9]} 57. Ne5+ {[%clk 0:00:30.1]} 57... Kf6 {[%clk 0:00:05.6]}
58. a5 {[%clk 0:00:30.6]} 58... Bc8 {[%clk 0:00:05.6]} 59. Nc6 {[%clk
0:00:29.9]} 59... Bb7 {[%clk 0:00:04.9]} 60. Nd4 {[%clk 0:00:26.7]} 60... g5
{[%clk 0:00:04.6]} 61. f5 {[%clk 0:00:22.4]} 61... Ke5 {[%clk 0:00:04.2]} 62.
Kg4 {[%clk 0:00:22.5]} 62... Kf6 {[%clk 0:00:04.6]} 63. Kh5 {[%clk 0:00:22.2]}
63... Ba8 {[%clk 0:00:03.8]} 64. a6 {[%clk 0:00:21.6]} 64... Ke5 {[%clk
0:00:02.9]} 65. Kxg5 {[%clk 0:00:22.1]} 1-0

[Event "Early-Titled-Tuesday-Blitz-December-26-2023"]
[Site "Chess.com"]
[Date "2023.12.26"]
[Round "6"]
[White "marvinguevara"]
[Black "wild3000"]
[Result "0-1"]
[WhiteElo "2198"]
[BlackElo "2410"]
[TimeControl "180+1"]
[EndTime "9:07:32 PST"]
[Termination "wild3000 won by checkmate"]

1. e4 {[%clk 0:03:00.9]} 1... e6 {[%clk 0:02:47.9]} 2. d4 {[%clk 0:03:00.6]}
2... a6 {[%clk 0:02:48.2]} 3. Nf3 {[%clk 0:02:56.2]} 3... b5 {[%clk 0:02:48.7]}
4. Bd3 {[%clk 0:02:52.4]} 4... Bb7 {[%clk 0:02:49.2]} 5. O-O {[%clk 0:02:51.5]}
5... d6 {[%clk 0:02:49.4]} 6. Re1 {[%clk 0:02:48.7]} 6... c5 {[%clk 0:02:49.5]}
7. c3 {[%clk 0:02:46.5]} 7... Nf6 {[%clk 0:02:48.7]} 8. Bg5 {[%clk 0:02:39.6]}
8... Be7 {[%clk 0:02:48.5]} 9. dxc5 {[%clk 0:02:35.5]} 9... dxc5 {[%clk
0:02:48.3]} 10. Bxf6 {[%clk 0:02:33.7]} 10... Bxf6 {[%clk 0:02:48.1]} 11. e5
{[%clk 0:02:33.4]} 11... Be7 {[%clk 0:02:48.2]} 12. Qe2 {[%clk 0:02:30.4]} 12...
Nd7 {[%clk 0:02:43.8]} 13. Nbd2 {[%clk 0:02:24.6]} 13... Qc7 {[%clk 0:02:43.7]}
14. Rad1 {[%clk 0:02:19.2]} 14... O-O {[%clk 0:02:43.4]} 15. Bb1 {[%clk
0:02:11.1]} 15... Rfd8 {[%clk 0:02:40.1]} 16. Nf1 {[%clk 0:01:59.1]} 16... Bxf3
{[%clk 0:02:34.2]} 17. Qxf3 {[%clk 0:01:56.3]} 17... Nxe5 {[%clk 0:02:34.7]} 18.
Rxd8+ {[%clk 0:01:46.7]} 18... Rxd8 {[%clk 0:02:35.6]} 19. Qe4 {[%clk
0:01:16.1]} 19... Ng6 {[%clk 0:02:33.8]} 20. Ng3 {[%clk 0:01:11.5]} 20... c4
{[%clk 0:02:27.5]} 21. Nh5 {[%clk 0:01:01.5]} 21... Rd5 {[%clk 0:02:25.1]} 22.
Ng3 {[%clk 0:00:56.8]} 22... Qd8 {[%clk 0:02:22.2]} 23. Qf3 {[%clk 0:00:44.1]}
23... Rd2 {[%clk 0:02:16]} 24. b3 {[%clk 0:00:27.1]} 24... cxb3 {[%clk
0:02:14.4]} 25. axb3 {[%clk 0:00:28]} 25... Bc5 {[%clk 0:02:09.2]} 26. Ne4
{[%clk 0:00:26.5]} 26... Rd5 {[%clk 0:02:05.6]} 27. c4 {[%clk 0:00:23.7]} 27...
Rf5 {[%clk 0:02:04.4]} 28. Qg3 {[%clk 0:00:19.5]} 28... Be7 {[%clk 0:01:54.5]}
29. h3 {[%clk 0:00:15.1]} 29... bxc4 {[%clk 0:01:50.5]} 30. bxc4 {[%clk
0:00:14.9]} 30... a5 {[%clk 0:01:36.3]} 31. Nc3 {[%clk 0:00:11.3]} 31... Bh4
{[%clk 0:01:31.9]} 32. Rd1 {[%clk 0:00:05.4]} 32... Qxd1+ {[%clk 0:01:29.1]} 33.
Nxd1 {[%clk 0:00:05.6]} 33... Bxg3 {[%clk 0:01:29.3]} 34. Bxf5 {[%clk
0:00:06.1]} 34... Bxf2+ {[%clk 0:01:25.9]} 35. Kxf2 {[%clk 0:00:05.1]} 35...
exf5 {[%clk 0:01:26.8]} 36. Ke3 {[%clk 0:00:05.2]} 36... Kf8 {[%clk 0:01:24.2]}
37. Kd4 {[%clk 0:00:05.4]} 37... Ke7 {[%clk 0:01:24.3]} 38. Kc5 {[%clk
0:00:05.9]} 38... Nf4 {[%clk 0:01:24]} 39. Ne3 {[%clk 0:00:03.7]} 39... g6
{[%clk 0:01:20.8]} 40. Kb5 {[%clk 0:00:04]} 40... Kd6 {[%clk 0:01:19.2]} 41.
Kxa5 {[%clk 0:00:04.3]} 41... Kc5 {[%clk 0:01:19.5]} 42. Ka4 {[%clk 0:00:04.3]}
42... Nd3 {[%clk 0:01:17]} 43. Kb3 {[%clk 0:00:04.1]} 43... Ne5 {[%clk 0:01:17]}
44. Kc3 {[%clk 0:00:04]} 44... f4 {[%clk 0:01:17.1]} 45. Ng4 {[%clk 0:00:02.6]}
45... Nxc4 {[%clk 0:01:11.9]} 46. Nf6 {[%clk 0:00:01.3]} 46... h5 {[%clk
0:01:09.9]} 47. Ne4+ {[%clk 0:00:01.4]} 47... Kd5 {[%clk 0:01:09.3]} 48. Nf6+
{[%clk 0:00:01.5]} 48... Ke5 {[%clk 0:01:05.5]} 49. Ng8 {[%clk 0:00:02.1]} 49...
Ne3 {[%clk 0:01:04.8]} 50. Nh6 {[%clk 0:00:02.4]} 50... Nxg2 {[%clk 0:01:04.3]}
51. Nxf7+ {[%clk 0:00:03.3]} 51... Kf6 {[%clk 0:01:02.2]} 52. Ng5 {[%clk
0:00:04.2]} 52... Kxg5 {[%clk 0:01:02]} 53. Kd4 {[%clk 0:00:05.1]} 53... f3
{[%clk 0:01:00.4]} 54. Ke4 {[%clk 0:00:06]} 54... f2 {[%clk 0:01:00.5]} 55. h4+
{[%clk 0:00:05.6]} 55... Kxh4 {[%clk 0:01:00.5]} 56. Kf3 {[%clk 0:00:06.5]}
56... f1=Q+ {[%clk 0:01:00.4]} 57. Ke4 {[%clk 0:00:06.8]} 57... Qf5+ {[%clk
0:00:59.3]} 58. Kd4 {[%clk 0:00:07.7]} 58... Kg5 {[%clk 0:00:57.9]} 59. Kc3
{[%clk 0:00:07]} 59... Qe4 {[%clk 0:00:57.8]} 60. Kb2 {[%clk 0:00:07.9]} 60...
Qd3 {[%clk 0:00:57.8]} 61. Ka1 {[%clk 0:00:08.8]} 61... Qd2 {[%clk 0:00:57.4]}
62. Kb1 {[%clk 0:00:09.2]} 62... Nf4 {[%clk 0:00:57.3]} 63. Ka1 {[%clk
0:00:10.1]} 63... Nd3 {[%clk 0:00:57.5]} 64. Kb1 {[%clk 0:00:11]} 64... Qb2#
{[%clk 0:00:27.8]} 0-1